fUST/lending_fUST_20250216
["ID","MTS","AMOUNT","RATE_DAILY","PERIOD"]
[353207707,1739650241098,-793.04,8.862e-05,2]
[353207708,1739650241107,-500.0,8.862e-05,2]
[353207709,1739650241116,-500.0,8.862e-05,2]
[353207710,1739650241126,-1751.58,8.862e-05,2]
[353207711,1739650241135,-500.0,8.862e-05,2]
[353207712,1739650241144,-584.5,8.862e-05,2]
[353207713,1739650241154,-500.0,8.862e-05,2]
[353207714,1739650241163,-500.0,8.862e-05,2]
[353207715,1739650241173,-500.0,8.862e-05,2]
[353207716,1739650241182,-500.0,8.862e-05,2]
[353207717,1739650241191,-500.0,8.862e-05,2]
[353207718,1739650241201,-500.0,8.862e-05,2]
[353207719,1739650241210,-500.0,8.862e-05,2]
[353207720,1739650241219,-500.57,8.862e-05,2]
[353207721,1739650241229,-500.0,8.862e-05,2]
[353207722,1739650241239,-500.0,8.862e-05,2]
[353207723,1739650241248,-12956.51,8.862e-05,2]
[353207724,1739650241258,-500.0,8.862e-05,2]
[353207725,1739650241267,-542.89,8.862e-05,2]
[353207726,1739650241276,-500.0,8.862e-05,2]
[353207727,1739650241286,-500.0,8.862e-05,2]
[353207728,1739650241295,-500.0,8.862e-05,2]
[353207729,1739650241305,-1116.47,8.862e-05,2]
[353207730,1739650241314,-557.43,8.862e-05,2]
[353207731,1739650241323,-264.57296636,8.862e-05,2]
[353207732,1739650241333,-559.89,8.862e-05,2]
[353207733,1739650241343,-500.0,8.862e-05,2]
[353207734,1739650241352,-1133.33,8.862e-05,2]
[353207735,1739650241361,-500.0,8.862e-05,2]
[353207736,1739650241371,-1849.15,8.862e-05,2]
[353207737,1739650241380,-500.0,8.862e-05,2]
[353207738,1739650241390,-500.0,8.862e-05,2]
[353207739,1739650241400,-500.0,8.862e-05,2]
[353207740,1739650241409,-501.22811878,8.862e-05,2]
[353207741,1739650241419,-500.0,8.862e-05,2]
[353207742,1739650241428,-691.85,8.862e-05,2]
[353207743,1739650241438,-500.0,8.862e-05,2]
[353207744,1739650241450,-812.78,8.862e-05,2]
[353207745,1739650241460,-500.0,8.862e-05,2]
[353207746,1739650241469,-500.0,8.862e-05,2]
[353207747,1739650241478,-500.0,8.862e-05,2]
[353207748,1739650241490,-284.32746956,8.862e-05,2]
[353207749,1739650241499,-500.0,8.862e-05,2]
[353207750,1739650241508,-1011.19,8.862e-05,2]
[353207751,1739650241517,-500.0,8.862e-05,2]
[353207752,1739650241527,-500.0,8.862e-05,2]
[353207753,1739650241536,-803.93,8.862e-05,2]
[353207754,1739650241666,-504.2377707,8.862e-05,2]
[353207755,1739650241676,-500.0,8.862e-05,2]
[353207756,1739650241686,-531.43660287,8.862e-05,2]
[353207757,1739650241696,-500.0,8.862e-05,2]
[353207758,1739650241705,-1039.86,8.862e-05,2]
[353207759,1739650241715,-3544.68,8.862e-05,2]
[353207760,1739650241724,-500.0,8.862e-05,2]
[353207761,1739650241734,-351.34382465,8.862e-05,2]
[353207762,1739650241743,-554.72,8.862e-05,2]
[353207763,1739650241753,-500.0,8.862e-05,2]
[353207764,1739650241762,-688.47,8.862e-05,2]
[353207765,1739650241771,-500.0,8.862e-05,2]
[353207766,1739650241781,-508.75677761,8.862e-05,2]
[353207767,1739650241790,-14822.42,8.862e-05,2]
[353207768,1739650241799,-978.14,8.862e-05,2]
[353207769,1739650241809,-346.27600435,8.862e-05,2]
[353207770,1739650241817,-500.0,8.862e-05,2]
[353207771,1739650241827,-1829.08,8.862e-05,2]
[353207772,1739650241837,-500.0,8.862e-05,2]
[353207773,1739650241846,-500.0,8.862e-05,2]
[353207774,1739650241855,-1215.24,8.862e-05,2]
[353207775,1739650241864,-963.65,8.862e-05,2]
[353207776,1739650241873,-500.0,8.862e-05,2]
[353207777,1739650241882,-500.0,8.862e-05,2]
[353207778,1739650241891,-500.0,8.862e-05,2]
[353207779,1739650241901,-500.0,8.862e-05,2]
[353207780,1739650241910,-577.51,8.862e-05,2]
[353207781,1739650241919,-500.0,8.863e-05,2]
[353207782,1739650241930,-618.66,8.863e-05,2]
[353207783,1739650241939,-500.0,8.863e-05,2]
[353207784,1739650241950,-500.0,8.863e-05,2]
[353207785,1739650241961,-564.97,8.863e-05,2]
[353207786,1739650241971,-625.95,8.863e-05,2]
[353207787,1739650241980,-500.0,8.863e-05,2]
[353207788,1739650241991,-500.0,8.863e-05,2]
[353207789,1739650242000,-2448.65,8.863e-05,2]
[353207790,1739650242009,-500.0,8.863e-05,2]
[353207791,1739650242020,-50919.62747625,8.863e-05,2]
[353207792,1739650242242,-207.82142417,8.862e-05,2]
[353207793,1739650242252,-2145.41391438,8.863e-05,2]
[353207794,1739650242263,-34484.25480429,8.863e-05,2]
[353207795,1739650242274,-80445.89102349,8.863e-05,2]
[353207805,1739650243113,-500.0,8.862e-05,2]
[353207806,1739650243122,-37589.59,8.862e-05,2]
[353207807,1739650243132,-500.0,8.862e-05,2]
[353207808,1739650243142,-38663.12728397,8.863e-05,2]
[353207878,1739650246001,-1682.04,8.861e-05,2]
[353207880,1739650246012,-500.0,8.861e-05,2]
[353207882,1739650246022,-500.0,8.862e-05,2]
[353207884,1739650246032,-592.88,8.862e-05,2]
[353207886,1739650246041,-57457.59548789,8.863e-05,2]
[353207985,1739650274913,182.00595468,0.00019,120]
[353207986,1739650341975,24900.0,7.866e-05,2]
[353207987,1739650480762,1000.0,0.00019,120]
[353207988,1739650515288,171.64302,8.722e-05,2]
[353207990,1739650720841,407.408,8.686e-05,2]
[353208102,1739651440317,-389.23000006,8.858e-05,2]
[353208217,1739651443223,-536.1872,8.858e-05,2]
[353208224,1739651443281,-287.4975214,8.858e-05,2]
[353208227,1739651443293,-537.0,8.858e-05,2]
[353208233,1739651443339,-351.64527854,8.858e-05,2]
[353208235,1739651443349,-340.49072385,8.858e-05,2]
[353208237,1739651443361,-159.50927615,8.858e-05,2]
[353208239,1739651443371,-500.0,8.858e-05,2]
[353208241,1739651443380,-278.85472385,8.858e-05,2]
[353208243,1739651443392,-221.14527615,8.858e-05,2]
[353208245,1739651443402,-500.0,8.858e-05,2]
[353208247,1739651443412,-500.0,8.858e-05,2]
[353208249,1739651443421,-500.0,8.859e-05,2]
[353208251,1739651443431,-972.97,8.859e-05,2]
[353208253,1739651443440,-722.1,8.859e-05,2]
[353208255,1739651443450,-870.66,8.859e-05,2]
[353208257,1739651443459,-500.0,8.859e-05,2]
[353208259,1739651443469,-489.0063896,8.859e-05,2]
[353208262,1739651443481,-10.9936104,8.859e-05,2]
[353208264,1739651443490,-500.0,8.859e-05,2]
[353208266,1739651443500,-1304.27,8.859e-05,2]
[353208268,1739651443510,-822.53,8.859e-05,2]
[353208270,1739651443519,-593.56,8.859e-05,2]
[353208272,1739651443528,-500.0,8.859e-05,2]
[353208274,1739651443538,-500.0,8.859e-05,2]
[353208276,1739651443548,-255.62088488,8.859e-05,2]
[353208278,1739651443558,-859.32,8.859e-05,2]
[353208280,1739651443567,-500.0,8.859e-05,2]
[353208282,1739651443577,-1306.13,8.859e-05,2]
[353208284,1739651443586,-500.0,8.859e-05,2]
[353208286,1739651443596,-500.0,8.859e-05,2]
[353208288,1739651443606,-823.9,8.859e-05,2]
[353208290,1739651443615,-500.0,8.859e-05,2]
[353208292,1739651443625,-4429.88,8.859e-05,2]
[353208294,1739651443635,-500.0,8.859e-05,2]
[353208296,1739651443644,-1501.39,8.859e-05,2]
[353208298,1739651443653,-818.11,8.859e-05,2]
[353208300,1739651443662,-500.0,8.859e-05,2]
[353208302,1739651443672,-500.0,8.859e-05,2]
[353208304,1739651443682,-667.71,8.859e-05,2]
[353208306,1739651443691,-988.09,8.859e-05,2]
[353208308,1739651443703,-3004.03,8.859e-05,2]
[353208310,1739651443712,-230.48143367,8.859e-05,2]
[353208312,1739651443722,-1652.84,8.859e-05,2]
[353208314,1739651443732,-3382.39,8.859e-05,2]
[353208316,1739651443742,-500.0,8.859e-05,2]
[353208318,1739651443751,-1342.16,8.859e-05,2]
[353208320,1739651443761,-636.56,8.859e-05,2]
[353208322,1739651443771,-500.0,8.859e-05,2]
[353208324,1739651443781,-500.0,8.859e-05,2]
[353208326,1739651443790,-500.0,8.859e-05,2]
[353208328,1739651443799,-1054.72,8.859e-05,2]
[353208330,1739651443809,-1253.58,8.859e-05,2]
[353208332,1739651443820,-753.02,8.859e-05,2]
[353208334,1739651443829,-1779.17,8.859e-05,2]
[353208336,1739651443842,-500.0,8.859e-05,2]
[353208337,1739651443857,-500.0,8.859e-05,2]
[353208338,1739651443867,-251.29195403,8.859e-05,2]
[353208339,1739651443877,-500.0,8.859e-05,2]
[353208340,1739651443888,-500.0,8.859e-05,2]
[353208341,1739651443898,-500.0,8.859e-05,2]
[353208342,1739651443908,-229.39711435,8.859e-05,2]
[353208343,1739651443918,-407.06731864,8.859e-05,2]
[353208344,1739651443931,-500.0,8.859e-05,2]
[353208345,1739651443941,-500.0,8.859e-05,2]
[353208346,1739651443951,-500.0,8.859e-05,2]
[353208347,1739651443960,-508.3,8.859e-05,2]
[353208348,1739651443971,-500.0,8.859e-05,2]
[353208349,1739651443982,-688.88,8.859e-05,2]
[353208351,1739651443991,-500.0,8.859e-05,2]
[353208353,1739651444000,-560.15,8.859e-05,2]
[353208355,1739651444011,-599.06,8.859e-05,2]
[353208358,1739651444020,-40.49521723,8.859e-05,2]
[353208360,1739651444034,-5220.54478277,8.859e-05,2]
[353208362,1739651444043,-494.02725094,8.859e-05,2]
[353208615,1739651446588,-522.76,8.858e-05,2]
[353208617,1739651446597,-743.20891735,8.859e-05,2]
[353208619,1739651446609,-717.95383171,8.859e-05,2]
[353208621,1739651446618,-500.0,8.859e-05,2]
[353208623,1739651446627,-1131.82,8.859e-05,2]
[353208625,1739651446637,-500.0,8.859e-05,2]
[353208627,1739651446646,-1227.26,8.859e-05,2]
[353208628,1739651446655,-1053.69,8.859e-05,2]
[353208629,1739651446666,-725.53,8.859e-05,2]
[353208630,1739651446675,-1191.67,8.859e-05,2]
[353208631,1739651446685,-992.44,8.859e-05,2]
[353208633,1739651446694,-1772.1,8.859e-05,2]
[353208634,1739651446703,-500.0,8.859e-05,2]
[353208635,1739651446713,-582.77,8.859e-05,2]
[353208636,1739651446722,-500.0,8.859e-05,2]
[353208637,1739651446731,-690.01,8.859e-05,2]
[353208638,1739651446741,-500.0,8.859e-05,2]
[353208639,1739651446750,-500.0,8.859e-05,2]
[353208640,1739651446760,-1633.19,8.859e-05,2]
[353208641,1739651446770,-1801.78368763,8.859e-05,2]
[353208642,1739651446782,-1664.33631237,8.859e-05,2]
[353208643,1739651446792,-500.0,8.859e-05,2]
[353208644,1739651446801,-500.0,8.859e-05,2]
[353208645,1739651446811,-500.0,8.859e-05,2]
[353208646,1739651446821,-552.2,8.859e-05,2]
[353208647,1739651446831,-50.90827731,8.859e-05,2]
[353209050,1739651454068,663.74800858,8.759e-05,2]
[353209051,1739651454471,390.60044174,8.843e-05,2]
[353209053,1739652440798,24900.0,7.859e-05,2]
[353209097,1739652632424,-1095.69529847,8.855e-05,2]
[353209099,1739652632436,-1021.35470153,8.855e-05,2]
[353209101,1739652632446,-518.56,8.855e-05,2]
[353209103,1739652632456,-500.0,8.855e-05,2]
[353209104,1739652632465,-500.0,8.856e-05,2]
[353209106,1739652632475,-417.29073803,8.856e-05,2]
[353209108,1739652632487,-82.70926197,8.856e-05,2]
[353209110,1739652632496,-438.81142038,8.856e-05,2]
[353209112,1739652632507,-500.0,8.856e-05,2]
[353209114,1739652632516,-500.0,8.856e-05,2]
[353209116,1739652632526,-350.57794522,8.856e-05,2]
[353209118,1739652632535,-500.0,8.856e-05,2]
[353209120,1739652632545,-502.45800102,8.856e-05,2]
[353209123,1739652632555,-500.0,8.856e-05,2]
[353209125,1739652632564,-500.0,8.856e-05,2]
[353209128,1739652632573,-500.0,8.856e-05,2]
[353209131,1739652632583,-500.0,8.856e-05,2]
[353209134,1739652632593,-513.96777686,8.856e-05,2]
[353209137,1739652632602,-500.0,8.856e-05,2]
[353209140,1739652632612,-508.0579383,8.856e-05,2]
[353209143,1739652632621,-500.0,8.856e-05,2]
[353209146,1739652632631,-500.0,8.856e-05,2]
[353209149,1739652632640,-500.0,8.856e-05,2]
[353209152,1739652632649,-500.0,8.856e-05,2]
[353209155,1739652632660,-500.0,8.856e-05,2]
[353209159,1739652632671,-500.0,8.856e-05,2]
[353209162,1739652632680,-500.0,8.856e-05,2]
[353209165,1739652632690,-500.0,8.856e-05,2]
[353209168,1739652632699,-60.30871233,8.856e-05,2]
[353209173,1739652632719,-439.69128767,8.856e-05,2]
[353209176,1739652632729,-500.0,8.856e-05,2]
[353209179,1739652632738,-500.0,8.856e-05,2]
[353209182,1739652632749,-500.0,8.856e-05,2]
[353209185,1739652632758,-500.0,8.856e-05,2]
[353209188,1739652632767,-500.0,8.856e-05,2]
[353209191,1739652632777,-500.0,8.856e-05,2]
[353209194,1739652632786,-500.0,8.856e-05,2]
[353209197,1739652632796,-500.0,8.856e-05,2]
[353209200,1739652632806,-500.0,8.856e-05,2]
[353209203,1739652632816,-500.0,8.856e-05,2]
[353209206,1739652632825,-1645.08,8.856e-05,2]
[353209210,1739652632834,-500.0,8.856e-05,2]
[353209213,1739652632844,-500.0,8.856e-05,2]
[353209216,1739652632853,-500.0,8.856e-05,2]
[353209218,1739652632862,-1038.12,8.856e-05,2]
[353209221,1739652632872,-500.0,8.856e-05,2]
[353209224,1739652632884,-500.0,8.856e-05,2]
[353209227,1739652632910,-500.0,8.856e-05,2]
[353209230,1739652632939,-1529.47,8.856e-05,2]
[353209232,1739652632962,-500.0,8.856e-05,2]
[353209234,1739652632985,-2480.03,8.856e-05,2]
[353209236,1739652633007,-500.0,8.856e-05,2]
[353209238,1739652633029,-500.0,8.856e-05,2]
[353209240,1739652633053,-500.0,8.856e-05,2]
[353209242,1739652633078,-500.0,8.856e-05,2]
[353209244,1739652633097,-4388.55,8.856e-05,2]
[353209246,1739652633108,-500.0,8.856e-05,2]
[353209248,1739652633117,-500.0,8.856e-05,2]
[353209250,1739652633127,-512.53719517,8.856e-05,2]
[353209252,1739652633137,-500.0,8.856e-05,2]
[353209255,1739652633147,-500.0,8.856e-05,2]
[353209258,1739652633157,-500.0,8.856e-05,2]
[353209260,1739652633167,-500.0,8.856e-05,2]
[353209262,1739652633176,-500.0,8.856e-05,2]
[353209264,1739652633186,-500.0,8.856e-05,2]
[353209266,1739652633196,-500.0,8.856e-05,2]
[353209268,1739652633205,-500.0,8.856e-05,2]
[353209270,1739652633215,-500.0,8.856e-05,2]
[353209272,1739652633224,-834.27,8.856e-05,2]
[353209274,1739652633234,-500.0,8.856e-05,2]
[353209276,1739652633243,-2410.08,8.856e-05,2]
[353209278,1739652633255,-500.0,8.856e-05,2]
[353209280,1739652633264,-2410.08,8.856e-05,2]
[353209282,1739652633274,-2410.08,8.856e-05,2]
[353209284,1739652633283,-3015.36,8.856e-05,2]
[353209286,1739652633292,-500.0,8.856e-05,2]
[353209288,1739652633301,-3387.73,8.856e-05,2]
[353209290,1739652633311,-309.54676741,8.856e-05,2]
[353209292,1739652633320,-500.0,8.856e-05,2]
[353209294,1739652633331,-500.0,8.856e-05,2]
[353209296,1739652633341,-1646.59,8.856e-05,2]
[353209298,1739652633350,-500.0,8.856e-05,2]
[353209300,1739652633359,-500.0,8.856e-05,2]
[353209302,1739652633369,-500.0,8.856e-05,2]
[353209304,1739652633379,-1332.84,8.856e-05,2]
[353209306,1739652633389,-500.0,8.856e-05,2]
[353209308,1739652633400,-500.0,8.856e-05,2]
[353209310,1739652633410,-500.0,8.856e-05,2]
[353209312,1739652633420,-500.0,8.856e-05,2]
[353209314,1739652633430,-500.0,8.856e-05,2]
[353209316,1739652633440,-500.0,8.856e-05,2]
[353209318,1739652633450,-500.0,8.856e-05,2]
[353209320,1739652633460,-313.55821646,8.856e-05,2]
[353209322,1739652633471,-500.0,8.856e-05,2]
[353209324,1739652633480,-500.0,8.856e-05,2]
[353209326,1739652633490,-500.0,8.856e-05,2]
[353209328,1739652633500,-500.0,8.856e-05,2]
[353209330,1739652633510,-500.0,8.856e-05,2]
[353209332,1739652633520,-500.0,8.856e-05,2]
[353209334,1739652633531,-500.0,8.856e-05,2]
[353209336,1739652633541,-500.0,8.856e-05,2]
[353209338,1739652633551,-500.0,8.856e-05,2]
[353209340,1739652633561,-500.0,8.856e-05,2]
[353209343,1739652633571,-500.0,8.856e-05,2]
[353209344,1739652633581,-500.0,8.856e-05,2]
[353209347,1739652633591,-500.0,8.856e-05,2]
[353209348,1739652633600,-500.0,8.856e-05,2]
[353209351,1739652633611,-500.0,8.856e-05,2]
[353209352,1739652633621,-617.87542929,8.856e-05,2]
[353209355,1739652633631,-500.0,8.856e-05,2]
[353209356,1739652633641,-1246.68,8.856e-05,2]
[353209358,1739652633651,-500.0,8.856e-05,2]
[353209360,1739652633662,-500.0,8.856e-05,2]
[353209363,1739652633672,-500.0,8.856e-05,2]
[353209365,1739652633682,-1776.72,8.856e-05,2]
[353209366,1739652633691,-500.0,8.856e-05,2]
[353209368,1739652633701,-500.0,8.856e-05,2]
[353209370,1739652633711,-500.0,8.856e-05,2]
[353209373,1739652633721,-500.0,8.856e-05,2]
[353209375,1739652633731,-501.77942504,8.856e-05,2]
[353209377,1739652633740,-515.98,8.856e-05,2]
[353209379,1739652633750,-500.0,8.856e-05,2]
[353209381,1739652633760,-500.0,8.856e-05,2]
[353209383,1739652633769,-500.0,8.856e-05,2]
[353209385,1739652633779,-500.0,8.856e-05,2]
[353209387,1739652633788,-500.0,8.856e-05,2]
[353209389,1739652633797,-500.0,8.856e-05,2]
[353209391,1739652633807,-1952.93,8.856e-05,2]
[353209393,1739652633818,-500.0,8.856e-05,2]
[353209395,1739652633827,-680.85,8.856e-05,2]
[353209397,1739652633838,-5256.26,8.856e-05,2]
[353209399,1739652633847,-313.98797109,8.856e-05,2]
[353209401,1739652633859,-615.76,8.856e-05,2]
[353209403,1739652633869,-1220.83,8.856e-05,2]
[353209405,1739652633879,-500.0,8.856e-05,2]
[353209407,1739652633889,-500.0,8.856e-05,2]
[353209409,1739652633899,-500.0,8.856e-05,2]
[353209423,1739652634025,-1177.96,8.856e-05,2]
[353209425,1739652634036,-500.0,8.856e-05,2]
[353209427,1739652634045,-997.35,8.856e-05,2]
[353209429,1739652634055,-500.0,8.856e-05,2]
[353209431,1739652634065,-2440.13,8.856e-05,2]
[353209433,1739652634075,-500.0,8.856e-05,2]
[353209435,1739652634085,-500.0,8.856e-05,2]
[353209437,1739652634095,-737.51,8.856e-05,2]
[353209439,1739652634104,-736.96,8.856e-05,2]
[353209441,1739652634114,-500.0,8.856e-05,2]
[353209443,1739652634124,-500.0,8.856e-05,2]
[353209445,1739652634134,-500.0,8.856e-05,2]
[353209447,1739652634144,-500.0,8.856e-05,2]
[353209449,1739652634154,-500.0,8.856e-05,2]
[353209451,1739652634163,-500.0,8.856e-05,2]
[353209452,1739652634173,-723.76,8.856e-05,2]
[353209453,1739652634182,-500.0,8.856e-05,2]
[353209454,1739652634192,-500.0,8.856e-05,2]
[353209455,1739652634201,-313.98797107,8.857e-05,2]
[353209456,1739652634210,-325.926,8.857e-05,2]
[353209457,1739652634219,-500.0,8.857e-05,2]
[353209458,1739652634229,-500.0,8.857e-05,2]
[353209459,1739652634238,-500.0,8.857e-05,2]
[353209460,1739652634249,-500.0,8.857e-05,2]
[353209461,1739652634261,-500.0,8.857e-05,2]
[353209462,1739652634272,-500.0,8.857e-05,2]
[353209463,1739652634282,-500.0,8.857e-05,2]
[353209464,1739652634291,-974.09,8.857e-05,2]
[353209465,1739652634303,-500.0,8.857e-05,2]
[353209466,1739652634313,-500.0,8.857e-05,2]
[353209468,1739652634323,-876.05,8.857e-05,2]
[353209470,1739652634334,-500.0,8.857e-05,2]
[353209472,1739652634344,-833.86,8.857e-05,2]
[353209474,1739652634354,-500.0,8.857e-05,2]
[353209476,1739652634363,-500.0,8.857e-05,2]
[353209478,1739652634372,-500.0,8.857e-05,2]
[353209480,1739652634383,-500.0,8.857e-05,2]
[353209482,1739652634392,-500.0,8.857e-05,2]
[353209484,1739652634404,-500.0,8.857e-05,2]
[353209486,1739652634414,-500.0,8.857e-05,2]
[353209488,1739652634423,-500.0,8.857e-05,2]
[353209490,1739652634433,-500.0,8.857e-05,2]
[353209492,1739652634444,-500.0,8.857e-05,2]
[353209494,1739652634454,-500.0,8.857e-05,2]
[353209496,1739652634464,-500.0,8.857e-05,2]
[353209498,1739652634473,-500.0,8.857e-05,2]
[353209500,1739652634483,-1291.6,8.857e-05,2]
[353209502,1739652634493,-500.0,8.857e-05,2]
[353209504,1739652634502,-829.92,8.857e-05,2]
[353209506,1739652634511,-500.0,8.857e-05,2]
[353209508,1739652634521,-500.0,8.857e-05,2]
[353209510,1739652634531,-500.0,8.857e-05,2]
[353209512,1739652634540,-500.0,8.857e-05,2]
[353209514,1739652634549,-1000.0,8.857e-05,2]
[353209516,1739652634559,-500.0,8.857e-05,2]
[353209517,1739652634568,-865.18,8.857e-05,2]
[353209520,1739652634578,-500.0,8.857e-05,2]
[353209521,1739652634587,-500.0,8.857e-05,2]
[353209523,1739652634597,-500.0,8.857e-05,2]
[353209525,1739652634606,-500.0,8.857e-05,2]
[353209528,1739652634616,-651.65,8.857e-05,2]
[353209530,1739652634625,-651.65,8.857e-05,2]
[353209532,1739652634635,-651.65,8.857e-05,2]
[353209534,1739652634644,-651.65,8.857e-05,2]
[353209535,1739652634654,-651.65,8.857e-05,2]
[353209538,1739652634664,-651.65,8.857e-05,2]
[353209540,1739652634673,-651.65,8.857e-05,2]
[353209541,1739652634682,-651.65,8.857e-05,2]
[353209544,1739652634692,-530.18946337,8.857e-05,2]
[353209546,1739652634701,-500.0,8.857e-05,2]
[353209548,1739652634711,-500.0,8.857e-05,2]
[353209550,1739652634720,-1293.37,8.857e-05,2]
[353209552,1739652634730,-500.0,8.857e-05,2]
[353209554,1739652634739,-500.0,8.857e-05,2]
[353209556,1739652634748,-500.0,8.857e-05,2]
[353209558,1739652634758,-500.0,8.857e-05,2]
[353209560,1739652634767,-500.0,8.857e-05,2]
[353209562,1739652634777,-500.0,8.857e-05,2]
[353209564,1739652634787,-500.0,8.857e-05,2]
[353209566,1739652634797,-547.58697855,8.857e-05,2]
[353209568,1739652634806,-500.0,8.857e-05,2]
[353209570,1739652634815,-2188.1027951,8.857e-05,2]
[353209572,1739652634831,-1236.0172049,8.857e-05,2]
[353209574,1739652634840,-500.0,8.857e-05,2]
[353209576,1739652634849,-500.0,8.857e-05,2]
[353209578,1739652634860,-500.62494415,8.857e-05,2]
[353209580,1739652634869,-500.0,8.857e-05,2]
[353209582,1739652634879,-831.24,8.857e-05,2]
[353209584,1739652634888,-500.211115,8.857e-05,2]
[353209586,1739652634898,-500.0,8.857e-05,2]
[353209588,1739652634908,-988.59,8.857e-05,2]
[353209591,1739652634918,-741.03,8.857e-05,2]
[353209593,1739652634927,-500.0,8.857e-05,2]
[353209594,1739652634936,-991.13,8.857e-05,2]
[353209597,1739652634946,-500.0,8.857e-05,2]
[353209598,1739652634955,-500.0,8.857e-05,2]
[353209601,1739652634966,-3085.83,8.857e-05,2]
[353209603,1739652634975,-500.0,8.857e-05,2]
[353209605,1739652634984,-500.0,8.857e-05,2]
[353209606,1739652634993,-500.0,8.857e-05,2]
[353209608,1739652635003,-2410.08,8.857e-05,2]
[353209610,1739652635012,-2410.08,8.857e-05,2]
[353209612,1739652635022,-2410.08,8.857e-05,2]
[353209614,1739652635031,-524.8564183,8.857e-05,2]
[353209616,1739652635041,-2410.08,8.857e-05,2]
[353209619,1739652635051,-2410.08,8.857e-05,2]
[353209621,1739652635060,-2410.08,8.857e-05,2]
[353209623,1739652635070,-2410.08,8.857e-05,2]
[353209625,1739652635079,-2410.08,8.857e-05,2]
[353209627,1739652635089,-2410.08,8.857e-05,2]
[353209629,1739652635099,-2410.08,8.857e-05,2]
[353209631,1739652635108,-2410.08,8.857e-05,2]
[353209633,1739652635118,-2410.08,8.857e-05,2]
[353209635,1739652635128,-37665.62,8.857e-05,2]
[353209637,1739652635137,-2410.08,8.857e-05,2]
[353209639,1739652635146,-500.0,8.857e-05,2]
[353209641,1739652635155,-503.34646127,8.857e-05,2]
[353209643,1739652635165,-500.0,8.857e-05,2]
[353209645,1739652635174,-501.08817951,8.857e-05,2]
[353209647,1739652635183,-500.0,8.857e-05,2]
[353209649,1739652635192,-1846.94,8.857e-05,2]
[353209651,1739652635201,-500.0,8.857e-05,2]
[353209653,1739652635211,-681.56,8.857e-05,2]
[353209655,1739652635220,-500.0,8.857e-05,2]
[353209656,1739652635230,-2129.89,8.857e-05,2]
[353209658,1739652635239,-644.25,8.857e-05,2]
[353209660,1739652635251,-500.0,8.857e-05,2]
[353209662,1739652635260,-595.11,8.857e-05,2]
[353209664,1739652635269,-1436.07,8.857e-05,2]
[353209666,1739652635278,-500.0,8.857e-05,2]
[353209668,1739652635288,-500.0,8.857e-05,2]
[353209670,1739652635297,-500.0,8.857e-05,2]
[353209672,1739652635308,-500.0,8.857e-05,2]
[353209674,1739652635317,-500.0,8.857e-05,2]
[353209677,1739652635326,-878.5,8.857e-05,2]
[353209679,1739652635336,-651.7,8.857e-05,2]
[353209680,1739652635345,-500.0,8.857e-05,2]
[353209682,1739652635355,-509.43,8.857e-05,2]
[353209685,1739652635364,-770.43,8.857e-05,2]
[353209687,1739652635373,-502.03010275,8.857e-05,2]
[353209689,1739652635383,-500.0,8.857e-05,2]
[353209691,1739652635392,-528.78,8.857e-05,2]
[353209693,1739652635401,-1052.44,8.857e-05,2]
[353209695,1739652635411,-500.0,8.857e-05,2]
[353209696,1739652635420,-500.0,8.857e-05,2]
[353209699,1739652635430,-500.0,8.857e-05,2]
[353209701,1739652635439,-500.0,8.857e-05,2]
[353209702,1739652635448,-835.46,8.857e-05,2]
[353209705,1739652635457,-500.0,8.857e-05,2]
[353209707,1739652635466,-500.0,8.857e-05,2]
[353209709,1739652635475,-500.0,8.857e-05,2]
[353209711,1739652635485,-501.53550744,8.857e-05,2]
[353209713,1739652635494,-500.0,8.857e-05,2]
[353209715,1739652635504,-578.48,8.857e-05,2]
[353209717,1739652635513,-313.98797107,8.857e-05,2]
[353209719,1739652635523,-600.16,8.857e-05,2]